fUST/lending_fUST_20260416
["ID","MTS","AMOUNT","RATE_DAILY","PERIOD"]
[420615256,1776347446413,-500.0,8.219e-05,2]
[420615257,1776347446423,-8442.91,8.219e-05,2]
[420615258,1776347446432,-500.0,8.219e-05,2]
[420615259,1776347446442,-438.47063494,8.219e-05,2]
[420615260,1776347446451,-500.0,8.219e-05,2]
[420615261,1776347446461,-514.35059931,8.219e-05,2]
[420615262,1776347446470,-500.0,8.219e-05,2]
[420615263,1776347446481,-560.92937016,8.219e-05,2]
[420615264,1776347446490,-500.0,8.219e-05,2]
[420615265,1776347446500,-500.0,8.219e-05,2]
[420615266,1776347446510,-500.0,8.219e-05,2]
[420615267,1776347446519,-598.09878766,8.219e-05,2]
[420615268,1776347446529,-2385.34,8.219e-05,2]
[420615269,1776347446538,-500.0,8.219e-05,2]
[420615270,1776347446549,-500.0,8.219e-05,2]
[420615271,1776347446558,-500.0,8.219e-05,2]
[420615272,1776347446567,-700.32,8.219e-05,2]
[420615273,1776347446576,-500.0,8.219e-05,2]
[420615274,1776347446586,-500.0,8.219e-05,2]
[420615275,1776347446596,-500.0,8.219e-05,2]
[420615276,1776347446606,-2700.85,8.219e-05,2]
[420615277,1776347446616,-500.0,8.219e-05,2]
[420615278,1776347446625,-500.0,8.219e-05,2]
[420615279,1776347446634,-227.34463944,8.219e-05,2]
[420615280,1776347446644,-7790.02,8.219e-05,2]
[420615281,1776347446653,-500.0,8.219e-05,2]
[420615282,1776347446663,-500.0,8.219e-05,2]
[420615283,1776347446673,-572.31900454,8.219e-05,2]
[420615284,1776347446682,-500.0,8.219e-05,2]
[420615285,1776347446691,-500.0,8.219e-05,2]
[420615286,1776347446700,-500.0,8.219e-05,2]
[420615287,1776347446709,-500.0,8.219e-05,2]
[420615288,1776347446719,-500.0,8.219e-05,2]
[420615289,1776347446728,-500.0,8.219e-05,2]
[420615290,1776347446737,-1453.34,8.219e-05,2]
[420615291,1776347446747,-500.0,8.219e-05,2]
[420615292,1776347446756,-594.77412169,8.219e-05,2]
[420615294,1776347446766,-500.0,8.219e-05,2]
[420615296,1776347446775,-500.0,8.219e-05,2]
[420615298,1776347446785,-154.86455198,8.219e-05,2]
[420615300,1776347446795,-500.0,8.219e-05,2]
[420615302,1776347446805,-588.93,8.219e-05,2]
[420615304,1776347446815,-485.51251019,8.219e-05,2]
[420615306,1776347446824,-151.0,8.219e-05,2]
[420615308,1776347446833,-151.0,8.219e-05,2]
[420615310,1776347446843,-151.0,8.219e-05,2]
[420615312,1776347446852,-151.0,8.219e-05,2]
[420615314,1776347446862,-151.0,8.219e-05,2]
[420615316,1776347446871,-151.0,8.219e-05,2]
[420615318,1776347446880,-151.0,8.219e-05,2]
[420615320,1776347446889,-151.0,8.219e-05,2]
[420615322,1776347446898,-788.0,8.219e-05,2]
[420615324,1776347446907,-500.0,8.219e-05,2]
[420615325,1776347446917,-151.0,8.219e-05,2]
[420615327,1776347446926,-151.0,8.219e-05,2]
[420615328,1776347446935,-151.0,8.219e-05,2]
[420615329,1776347446944,-151.0,8.219e-05,2]
[420615330,1776347446953,-151.0,8.219e-05,2]
[420615331,1776347446962,-184.905127,8.219e-05,2]
[420615332,1776347446971,-456.93210472,8.229e-05,2]
[420615333,1776347446981,-1447.2221393,8.245e-05,2]
[420615334,1776347446990,-719.04747942,8.247e-05,2]
[420615335,1776347446999,-621.59993339,8.284e-05,2]
[420615336,1776347447009,-745.65223616,8.302e-05,2]
[420615337,1776347447019,-926.06455424,8.305e-05,2]
[420615338,1776347447039,-932.91651502,8.305e-05,2]
[420615339,1776347447049,-736.416587,8.316e-05,2]
[420615340,1776347447058,-1118.87988011,8.353e-05,2]
[420615341,1776347447068,-557.5788265,8.355e-05,2]
[420615342,1776347447078,-2230.315306,8.355e-05,2]
[420615343,1776347447088,-697.152,8.357e-05,2]
[420615344,1776347447100,-1411.223,8.357e-05,2]
[420615345,1776347447112,-2208.0,8.357e-05,2]
[420615346,1776347447122,-739.0,8.357e-05,2]
[420615347,1776347447131,-184.0,8.357e-05,2]
[420615348,1776347447141,-150.748,8.357e-05,2]
[420615349,1776347447150,-773.2413689,8.357e-05,2]
[420615350,1776347447159,-801.85129955,8.412e-05,2]
[420615351,1776347447170,-1827.72841887,8.415e-05,2]
[420615353,1776347447181,-1989.11978686,8.423e-05,2]
[420615354,1776347447190,-7542.77321235,8.441e-05,2]
[420615355,1776347447199,-322.9189077,8.453e-05,2]
[420615356,1776347447209,-500.0,8.458e-05,2]
[420615357,1776347447218,-831.51979763,8.467e-05,2]
[420615358,1776347447228,-3107.99966697,8.492e-05,2]
[420615359,1776347447238,-785.1512,8.493e-05,2]
[420615360,1776347447247,-500.0,8.493e-05,2]
[420615361,1776347447256,-500.0,8.493e-05,2]
[420615362,1776347447266,-500.0,8.493e-05,2]
[420615363,1776347447275,-500.0,8.493e-05,2]
[420615364,1776347447284,-500.0,8.493e-05,2]
[420615365,1776347447294,-500.0,8.493e-05,2]
[420615366,1776347447303,-500.0,8.493e-05,2]
[420615367,1776347447312,-500.0,8.493e-05,2]
[420615368,1776347447321,-500.0,8.493e-05,2]
[420615369,1776347447330,-509.8436248,8.493e-05,2]
[420615370,1776347447339,-536.73509044,8.493e-05,2]
[420615371,1776347447349,-500.0,8.493e-05,2]
[420615372,1776347447358,-500.0,8.493e-05,2]
[420615373,1776347447368,-508.76329521,8.493e-05,2]
[420615374,1776347447377,-500.0,8.493e-05,2]
[420615375,1776347447387,-805.38,8.493e-05,2]
[420615376,1776347447396,-504.26390527,8.493e-05,2]
[420615377,1776347447405,-510.32306274,8.493e-05,2]
[420615378,1776347447415,-510.92958127,8.493e-05,2]
[420615379,1776347447424,-500.0,8.493e-05,2]
[420615380,1776347447434,-500.0,8.493e-05,2]
[420615381,1776347447443,-510.66739734,8.493e-05,2]
[420615382,1776347447452,-502.51909219,8.493e-05,2]
[420615383,1776347447462,-553.78375983,8.493e-05,2]
[420615384,1776347447471,-622.5448464,8.493e-05,2]
[420615385,1776347447480,-1051.46,8.493e-05,2]
[420615386,1776347447489,-506.45348785,8.493e-05,2]
[420615387,1776347447498,-508.94602844,8.493e-05,2]
[420615388,1776347447507,-617.69,8.493e-05,2]
[420615389,1776347447516,-509.89419715,8.493e-05,2]
[420615390,1776347447525,-500.0,8.493e-05,2]
[420615391,1776347447535,-500.0,8.493e-05,2]
[420615392,1776347447544,-500.0,8.493e-05,2]
[420615393,1776347447555,-464.4020361,8.493e-05,2]
[420615394,1776347447565,-500.0,8.493e-05,2]
[420615395,1776347447574,-227.27834756,8.493e-05,2]
[420615396,1776347447584,-500.0,8.493e-05,2]
[420615397,1776347447593,-500.0,8.493e-05,2]
[420615398,1776347447603,-500.0,8.493e-05,2]
[420615399,1776347447612,-500.0,8.493e-05,2]
[420615400,1776347447622,-3113.23,8.493e-05,2]
[420615401,1776347447632,-4117.36,8.493e-05,2]
[420615402,1776347447642,-500.0,8.493e-05,2]
[420615403,1776347447652,-500.0,8.493e-05,2]
[420615404,1776347447662,-500.0,8.493e-05,2]
[420615405,1776347447671,-500.0,8.493e-05,2]
[420615406,1776347447681,-500.0,8.493e-05,2]
[420615407,1776347447691,-566.67858217,8.493e-05,2]
[420615408,1776347447700,-504.45563128,8.493e-05,2]
[420615409,1776347447710,-1481.67,8.493e-05,2]
[420615410,1776347447719,-1042.93,8.493e-05,2]
[420615411,1776347447729,-500.0,8.493e-05,2]
[420615412,1776347447739,-529.1568234,8.493e-05,2]
[420615413,1776347447748,-500.0,8.493e-05,2]
[420615414,1776347447758,-3856.94,8.493e-05,2]
[420615415,1776347447768,-531.26802302,8.493e-05,2]
[420615416,1776347447778,-500.0,8.493e-05,2]
[420615417,1776347447788,-1720.25,8.493e-05,2]
[420615418,1776347447797,-2155.85,8.493e-05,2]
[420615419,1776347447807,-505.64650693,8.493e-05,2]
[420615420,1776347447817,-153.22801844,8.493e-05,2]
[420615421,1776347448227,-346.77198156,8.493e-05,2]
[420615422,1776347448236,-500.0,8.493e-05,2]
[420615423,1776347448246,-577.9,8.493e-05,2]
[420615424,1776347448255,-1662.32,8.493e-05,2]
[420615425,1776347448265,-500.0,8.493e-05,2]
[420615426,1776347448274,-500.0,8.493e-05,2]
[420615427,1776347448284,-500.0,8.493e-05,2]
[420615428,1776347448294,-500.0,8.493e-05,2]
[420615429,1776347448304,-38.94862338,8.493e-05,2]
[420615430,1776347448320,-461.05137662,8.493e-05,2]
[420615431,1776347448329,-1832.25,8.493e-05,2]
[420615432,1776347448338,-500.0,8.493e-05,2]
[420615433,1776347448347,-500.0,8.493e-05,2]
[420615434,1776347448356,-500.0,8.493e-05,2]
[420615435,1776347448365,-500.0,8.493e-05,2]
[420615436,1776347448375,-507.79356321,8.493e-05,2]
[420615437,1776347448384,-500.0,8.493e-05,2]
[420615438,1776347448394,-500.0,8.493e-05,2]
[420615439,1776347448403,-500.0,8.493e-05,2]
[420615440,1776347448413,-500.0,8.493e-05,2]
[420615441,1776347448422,-500.0,8.493e-05,2]
[420615442,1776347448431,-554.49082901,8.493e-05,2]
[420615443,1776347448441,-500.0,8.493e-05,2]
[420615444,1776347448450,-516.19397055,8.493e-05,2]
[420615445,1776347448460,-831.28,8.493e-05,2]
[420615446,1776347448469,-500.0,8.493e-05,2]
[420615447,1776347448478,-500.0,8.493e-05,2]
[420615448,1776347448487,-500.0,8.493e-05,2]
[420615449,1776347448497,-2910.83,8.493e-05,2]
[420615450,1776347448507,-500.0,8.493e-05,2]
[420615451,1776347448516,-500.0,8.493e-05,2]
[420615452,1776347448525,-500.0,8.493e-05,2]
[420615453,1776347448535,-500.0,8.493e-05,2]
[420615454,1776347448545,-688.35,8.493e-05,2]
[420615455,1776347448556,-881.83,8.493e-05,2]
[420615456,1776347448566,-500.0,8.493e-05,2]
[420615457,1776347448575,-500.0,8.493e-05,2]
[420615458,1776347448585,-1033.21,8.493e-05,2]
[420615459,1776347448595,-500.0,8.493e-05,2]
[420615460,1776347448605,-500.0,8.493e-05,2]
[420615461,1776347448614,-500.0,8.493e-05,2]
[420615462,1776347448623,-500.0,8.493e-05,2]
[420615463,1776347448632,-500.0,8.493e-05,2]
[420615464,1776347448642,-603.22,8.493e-05,2]
[420615465,1776347448651,-509.78,8.493e-05,2]
[420615466,1776347448660,-500.0,8.493e-05,2]
[420615467,1776347448669,-1867.39,8.493e-05,2]
[420615468,1776347448678,-500.0,8.493e-05,2]
[420615469,1776347448687,-512.91905832,8.493e-05,2]
[420615470,1776347448696,-500.0,8.493e-05,2]
[420615471,1776347448705,-500.0,8.493e-05,2]
[420615472,1776347448714,-500.0,8.493e-05,2]
[420615473,1776347448723,-525.18018293,8.493e-05,2]
[420615474,1776347448733,-500.0,8.493e-05,2]
[420615475,1776347448742,-500.0,8.493e-05,2]
[420615476,1776347448752,-500.0,8.493e-05,2]
[420615477,1776347448762,-500.0,8.493e-05,2]
[420615478,1776347448771,-500.0,8.493e-05,2]
[420615479,1776347448780,-316.83313381,8.493e-05,2]
[420615480,1776347448789,-500.0,8.493e-05,2]
[420615481,1776347448798,-500.0,8.493e-05,2]
[420615482,1776347448808,-500.0,8.493e-05,2]
[420615483,1776347448817,-534.40886877,8.493e-05,2]
[420615484,1776347448827,-500.0,8.493e-05,2]
[420615485,1776347448836,-500.0,8.493e-05,2]
[420615486,1776347448845,-631.18012959,8.493e-05,2]
[420615487,1776347448853,-431.12931453,8.493e-05,2]
[420615488,1776347448863,-500.0,8.493e-05,2]
[420615489,1776347448872,-656.19,8.493e-05,2]
[420615490,1776347448881,-500.0,8.493e-05,2]
[420615491,1776347448890,-500.0,8.493e-05,2]
[420615492,1776347448899,-468.10175604,8.493e-05,2]
[420615493,1776347448908,-1544.576064,8.493e-05,2]
[420615494,1776347448917,-500.60637053,8.493e-05,2]
[420615495,1776347448926,-500.0,8.493e-05,2]
[420615496,1776347448935,-837.05,8.493e-05,2]
[420615497,1776347448945,-1480.64,8.493e-05,2]
[420615498,1776347448954,-705.26,8.493e-05,2]
[420615499,1776347448963,-500.0,8.493e-05,2]
[420615500,1776347448972,-500.0,8.493e-05,2]
[420615501,1776347448983,-822.26,8.493e-05,2]
[420615502,1776347448992,-2699.92,8.493e-05,2]
[420615503,1776347449001,-500.0,8.493e-05,2]
[420615504,1776347449010,-500.0,8.493e-05,2]
[420615505,1776347449019,-500.0,8.493e-05,2]
[420615506,1776347449029,-500.0,8.493e-05,2]
[420615507,1776347449039,-615.88,8.493e-05,2]
[420615508,1776347449050,-565.79159479,8.493e-05,2]
[420615509,1776347449066,-918.3,8.493e-05,2]
[420615510,1776347449078,-2010.87,8.493e-05,2]
[420615511,1776347449088,-2645.38,8.493e-05,2]
[420615512,1776347449098,-500.0,8.493e-05,2]
[420615513,1776347449107,-500.0,8.493e-05,2]
[420615514,1776347449119,-500.0,8.493e-05,2]
[420615515,1776347449128,-500.0,8.493e-05,2]
[420615516,1776347449137,-514.19661728,8.493e-05,2]
[420615517,1776347449146,-500.0,8.493e-05,2]
[420615518,1776347449157,-500.0,8.493e-05,2]
[420615519,1776347449167,-1162.62,8.493e-05,2]
[420615520,1776347449177,-500.0,8.493e-05,2]
[420615521,1776347449186,-500.0,8.493e-05,2]
[420615522,1776347449195,-500.0,8.493e-05,2]
[420615523,1776347449204,-500.0,8.493e-05,2]
[420615524,1776347449213,-500.0,8.493e-05,2]
[420615525,1776347449222,-1196.0,8.493e-05,2]
[420615526,1776347449232,-1007.96,8.493e-05,2]
[420615527,1776347449242,-500.0,8.493e-05,2]
[420615528,1776347449252,-500.0,8.493e-05,2]
[420615529,1776347449262,-500.0,8.493e-05,2]
[420615530,1776347449272,-500.0,8.493e-05,2]
[420615531,1776347449281,-198.08635397,8.493e-05,2]
[420615532,1776347449291,-500.0,8.493e-05,2]
[420615533,1776347449302,-500.0,8.493e-05,2]
[420615534,1776347449311,-500.0,8.493e-05,2]
[420615535,1776347449321,-500.0,8.493e-05,2]
[420615536,1776347449331,-1505.24,8.493e-05,2]
[420615537,1776347449341,-500.0,8.493e-05,2]
[420615538,1776347449351,-2140.91,8.493e-05,2]
[420615539,1776347449361,-500.0,8.493e-05,2]
[420615540,1776347449371,-500.0,8.493e-05,2]
[420615541,1776347449380,-500.0,8.493e-05,2]
[420615542,1776347449389,-500.0,8.493e-05,2]
[420615543,1776347449399,-500.0,8.493e-05,2]
[420615544,1776347449409,-500.0,8.493e-05,2]
[420615545,1776347449419,-2489.33,8.493e-05,2]
[420615546,1776347449428,-3728.42,8.493e-05,2]
[420615547,1776347449438,-784.3,8.493e-05,2]
[420615548,1776347449448,-217.0009073,8.493e-05,2]
[420615549,1776347449464,-167.39290479,8.493e-05,2]
[420615550,1776347449474,-567.1650658,8.493e-05,2]
[420615551,1776347449483,-500.0,8.493e-05,2]
[420615552,1776347449493,-384.0,8.493e-05,2]
[420615553,1776347449503,-4366.97,8.493e-05,2]
[420615554,1776347449513,-1672.76,8.493e-05,2]
[420615555,1776347449522,-500.0,8.493e-05,2]
[420615556,1776347449531,-500.0,8.493e-05,2]
[420615557,1776347449541,-2208.62,8.493e-05,2]
[420615558,1776347449550,-500.0,8.493e-05,2]
[420615559,1776347449565,-2586.11,8.493e-05,2]
[420615560,1776347449574,-500.0,8.493e-05,2]
[420615561,1776347449584,-500.0,8.493e-05,2]
[420615562,1776347449594,-550.87,8.493e-05,2]
[420615563,1776347449603,-500.0,8.493e-05,2]
[420615564,1776347449613,-500.0,8.493e-05,2]
[420615565,1776347449623,-554.7901,8.493e-05,2]
[420615566,1776347449632,-459.16760418,8.493e-05,2]
[420615567,1776347449646,-1449.99239582,8.493e-05,2]
[420615568,1776347449656,-1990.16,8.493e-05,2]
[420615569,1776347449665,-500.0,8.493e-05,2]
[420615570,1776347449674,-1773.48,8.493e-05,2]
[420615571,1776347449685,-500.0,8.493e-05,2]
[420615572,1776347449694,-500.0,8.493e-05,2]
[420615573,1776347449703,-500.0,8.493e-05,2]
[420615574,1776347449712,-2744.3,8.493e-05,2]
[420615575,1776347449722,-1324.63,8.493e-05,2]
[420615576,1776347449731,-1629.3,8.493e-05,2]
[420615577,1776347449740,-6728.9,8.493e-05,2]
[420615578,1776347449749,-500.0,8.493e-05,2]
[420615579,1776347449758,-253.25411108,8.493e-05,2]
[420615580,1776347449767,-500.0,8.493e-05,2]
[420615581,1776347449776,-500.0,8.493e-05,2]
[420615582,1776347449784,-500.0,8.493e-05,2]
[420615583,1776347449794,-3011.81,8.493e-05,2]
[420615584,1776347449806,-500.0,8.493e-05,2]
[420615585,1776347449816,-6483.02,8.493e-05,2]
[420615586,1776347449825,-500.0,8.493e-05,2]
[420615587,1776347449834,-8143.34,8.493e-05,2]
[420615588,1776347449844,-500.0,8.493e-05,2]
[420615589,1776347449853,-500.0,8.493e-05,2]
[420615590,1776347449862,-1204.32,8.493e-05,2]
[420615591,1776347449872,-3004.44,8.493e-05,2]
[420615592,1776347449882,-1897.3,8.493e-05,2]
[420615593,1776347449891,-1433.85,8.493e-05,2]
[420615594,1776347449901,-500.0,8.493e-05,2]
[420615595,1776347449911,-538.51957129,8.493e-05,2]
[420615596,1776347449920,-500.0,8.493e-05,2]
[420615597,1776347449930,-5719.79,8.493e-05,2]
[420615598,1776347449940,-167.4442935,8.493e-05,2]
[420615599,1776347449949,-500.0,8.493e-05,2]
[420615600,1776347449962,-500.0,8.493e-05,2]
[420615601,1776347449971,-500.0,8.493e-05,2]
[420615602,1776347449980,-500.0,8.493e-05,2]
[420615603,1776347449989,-500.0,8.493e-05,2]
[420615604,1776347449998,-1953.06,8.493e-05,2]
[420615605,1776347450007,-500.0,8.493e-05,2]
[420615606,1776347450016,-1434.8,8.493e-05,2]
[420615607,1776347450026,-500.0,8.493e-05,2]
[420615608,1776347450035,-1718.57,8.493e-05,2]
[420615609,1776347450045,-500.0,8.493e-05,2]
[420615610,1776347450057,-500.0,8.493e-05,2]
[420615611,1776347450067,-500.0,8.493e-05,2]
[420615612,1776347450076,-500.0,8.493e-05,2]
[420615613,1776347450086,-500.0,8.493e-05,2]
[420615614,1776347450095,-2610.98,8.493e-05,2]
[420615615,1776347450105,-500.0,8.493e-05,2]
[420615616,1776347450115,-558.24412147,8.493e-05,2]
[420615617,1776347450124,-500.0,8.493e-05,2]
[420615618,1776347450134,-500.0,8.493e-05,2]
[420615619,1776347450143,-546.06432767,8.493e-05,2]
[420615620,1776347450153,-500.0,8.493e-05,2]
[420615621,1776347450162,-1095.12,8.493e-05,2]
[420615622,1776347450172,-565.01,8.493e-05,2]
[420615623,1776347450181,-4389.23,8.493e-05,2]
[420615624,1776347450190,-500.0,8.493e-05,2]
[420615625,1776347450199,-2304.72,8.493e-05,2]
[420615626,1776347450209,-235.06657011,8.493e-05,2]
[420615627,1776347450219,-500.0,8.493e-05,2]
[420615628,1776347450228,-500.0,8.493e-05,2]
[420615629,1776347450237,-258.8945614,8.493e-05,2]
[420615630,1776347450246,-530.36,8.493e-05,2]
[420615631,1776347450255,-500.0,8.493e-05,2]
[420615632,1776347450264,-500.0,8.493e-05,2]
[420615633,1776347450274,-500.0,8.493e-05,2]
[420615634,1776347450283,-500.0,8.493e-05,2]
[420615635,1776347450292,-583.46,8.493e-05,2]
[420615636,1776347450304,-500.0,8.493e-05,2]
[420615637,1776347450313,-7351.49,8.493e-05,2]
[420615638,1776347450323,-500.0,8.493e-05,2]
[420615639,1776347450332,-500.0,8.493e-05,2]
[420615640,1776347450342,-972.65,8.493e-05,2]
[420615641,1776347450351,-720.2,8.493e-05,2]
[420615642,1776347450360,-500.0,8.493e-05,2]
[420615643,1776347450369,-1125.29,8.493e-05,2]
[420615644,1776347450378,-3373.04,8.493e-05,2]
[420615645,1776347450387,-500.0,8.493e-05,2]
[420615646,1776347450397,-1840.97,8.493e-05,2]
[420615647,1776347450406,-500.0,8.493e-05,2]
[420615648,1776347450415,-328.50032832,8.493e-05,2]
[420615649,1776347450425,-1150.52,8.493e-05,2]
[420615650,1776347450434,-656.5,8.493e-05,2]
[420615651,1776347450443,-500.0,8.493e-05,2]
[420615652,1776347450453,-500.0,8.493e-05,2]
[420615653,1776347450462,-961.2,8.493e-05,2]
[420615654,1776347450471,-1605.32,8.493e-05,2]
[420615655,1776347450481,-3525.06,8.493e-05,2]
[420615656,1776347450490,-500.0,8.493e-05,2]
[420615657,1776347450500,-500.0,8.493e-05,2]
[420615658,1776347450510,-32291.38,8.493e-05,2]
[420615659,1776347450519,-887.71,8.493e-05,2]
[420615660,1776347450678,-5369.93,8.493e-05,2]
[420615661,1776347450688,-574.18,8.493e-05,2]
[420615662,1776347450697,-500.0,8.493e-05,2]
[420615663,1776347450706,-1115.51,8.493e-05,2]
[420615664,1776347450715,-500.0,8.493e-05,2]
[420615665,1776347450725,-3059.1,8.493e-05,2]
[420615666,1776347450734,-500.0,8.493e-05,2]
[420615667,1776347450743,-500.0,8.493e-05,2]
[420615668,1776347450752,-576.3,8.493e-05,2]
[420615669,1776347450761,-155.80332873,8.493e-05,2]
[420615670,1776347450771,-929.78,8.493e-05,2]
[420615671,1776347450780,-500.0,8.493e-05,2]
[420615672,1776347450789,-584.86626004,8.493e-05,2]
[420615673,1776347450798,-19594.06,8.493e-05,2]
[420615674,1776347450809,-500.0,8.493e-05,2]
[420615675,1776347450819,-665.79,8.493e-05,2]
[420615676,1776347450829,-23951.21,8.493e-05,2]
[420615677,1776347450838,-637.80648608,8.493e-05,2]
[420615678,1776347450846,-500.0,8.493e-05,2]
[420615679,1776347450856,-500.0,8.493e-05,2]
[420615680,1776347450865,-537.41,8.493e-05,2]
[420615681,1776347450874,-310.49056959,8.493e-05,2]
[420615682,1776347450883,-2518.79,8.493e-05,2]
[420615683,1776347450892,-3037.06,8.493e-05,2]
[420615684,1776347450901,-500.0,8.493e-05,2]
[420615685,1776347450910,-8442.91,8.493e-05,2]
[420615686,1776347450920,-528.41002727,8.493e-05,2]
[420615687,1776347450929,-543.37174356,8.493e-05,2]
[420615688,1776347450938,-621.6660417,8.493e-05,2]
[420615689,1776347450947,-500.0,8.493e-05,2]
[420615690,1776347450957,-500.0,8.493e-05,2]
[420615691,1776347450966,-500.0,8.493e-05,2]
[420615692,1776347450976,-2385.34,8.493e-05,2]
[420615693,1776347450986,-500.0,8.493e-05,2]
[420615694,1776347450996,-500.0,8.493e-05,2]
[420615695,1776347451007,-563.24964667,8.493e-05,2]
[420615696,1776347451016,-700.32,8.493e-05,2]
[420615697,1776347451026,-500.0,8.493e-05,2]
[420615698,1776347451035,-500.0,8.493e-05,2]
[420615699,1776347451045,-388.37497722,8.493e-05,2]
[420615700,1776347451057,-2700.85,8.493e-05,2]
[420615701,1776347451066,-500.0,8.493e-05,2]
[420615702,1776347451076,-500.0,8.493e-05,2]
[420615703,1776347451085,-7790.02,8.493e-05,2]
[420615704,1776347451094,-499.95,8.493e-05,2]
[420615705,1776347451104,-545.31373712,8.493e-05,2]
[420615706,1776347451114,-500.0,8.493e-05,2]
[420615707,1776347451123,-500.0,8.493e-05,2]
[420615708,1776347451132,-500.0,8.493e-05,2]
[420615709,1776347451142,-500.0,8.493e-05,2]
[420615710,1776347451151,-500.0,8.493e-05,2]
[420615711,1776347451161,-500.0,8.493e-05,2]
[420615712,1776347451172,-1453.34,8.493e-05,2]
[420615713,1776347451183,-500.0,8.493e-05,2]
[420615714,1776347451195,-500.0,8.493e-05,2]
[420615715,1776347451205,-500.0,8.493e-05,2]
[420615716,1776347451216,-588.93,8.493e-05,2]
[420615717,1776347451226,-500.0,8.493e-05,2]
[420615718,1776347451237,-528.0,8.5e-05,2]
[420615719,1776347451247,-791.0,8.5e-05,2]
[420615720,1776347451256,-172.0,8.514e-05,2]
[420615721,1776347451269,-648.0,8.514e-05,2]
[420615722,1776347451279,-648.0,8.514e-05,2]
[420615723,1776347451289,-648.0,8.514e-05,2]
[420615724,1776347451298,-648.0,8.514e-05,2]
[420615725,1776347451309,-340.0,8.514e-05,2]
[420615726,1776347451318,-648.0,8.514e-05,2]
[420615727,1776347451327,-340.0,8.514e-05,2]
[420615728,1776347451336,-340.0,8.514e-05,2]
[420615729,1776347451345,-648.0,8.514e-05,2]
[420615730,1776347451355,-340.0,8.514e-05,2]
[420615731,1776347451365,-648.0,8.514e-05,2]
[420615732,1776347451374,-340.0,8.514e-05,2]
[420615733,1776347451383,-166.0,8.514e-05,2]
[420615734,1776347451392,-648.0,8.514e-05,2]
[420615735,1776347451402,-340.0,8.514e-05,2]
[420615736,1776347451412,-166.0,8.514e-05,2]
[420615737,1776347451422,-648.0,8.514e-05,2]
[420615738,1776347451431,-166.0,8.514e-05,2]
[420615739,1776347451441,-648.0,8.514e-05,2]
[420615740,1776347451451,-364.94515003,8.514e-05,2]
[420615741,1776347451460,-648.0,8.514e-05,2]
[420615742,1776347451469,-648.0,8.514e-05,2]
[420615743,1776347451478,-648.0,8.514e-05,2]
[420615744,1776347451488,-648.0,8.514e-05,2]
[420615745,1776347451499,-648.0,8.514e-05,2]
[420615746,1776347451509,-184.71018893,8.514e-05,2]
[420615747,1776347451518,-164.0,8.514e-05,2]
[420615748,1776347451528,-192.24366646,8.514e-05,2]
[420615749,1776347451538,-862.28603014,8.522e-05,2]
[420615750,1776347451547,-4475.51952044,8.562e-05,2]
[420615751,1776347451558,-2500.0,8.572e-05,2]
[420615752,1776347451567,-894.19061326,8.577e-05,2]
[420615753,1776347451577,-300.55957,8.592e-05,2]
[420615754,1776347451585,-60346.367729,8.592e-05,2]
[420615755,1776347451595,-15771.220326,8.592e-05,2]
[420615756,1776347451604,-29397.039914,8.592e-05,2]
[420615757,1776347451613,-28865.739798,8.592e-05,2]
[420615758,1776347451623,-4112.38894247,8.6e-05,2]
[420615759,1776347451633,-6091.67934726,8.632e-05,2]
[420615760,1776347451642,-927.27566595,8.632e-05,2]
[420615761,1776347451651,-3370.690274,8.636e-05,2]
[420615762,1776347451660,-1000.0,8.66e-05,2]
[420615763,1776347451669,-961.58486559,8.687e-05,2]
[420615764,1776347451679,-7956.47914744,8.701e-05,2]
[420615765,1776347451688,-1000.0,8.741e-05,2]
[420615766,1776347451697,-785.1512,8.767e-05,2]
[420615767,1776347451706,-500.0,8.767e-05,2]
[420615768,1776347451715,-500.0,8.767e-05,2]
[420615769,1776347451724,-500.0,8.767e-05,2]
[420615770,1776347451733,-500.0,8.767e-05,2]
[420615771,1776347451742,-500.0,8.767e-05,2]
[420615772,1776347451751,-500.0,8.767e-05,2]
[420615773,1776347451760,-500.0,8.767e-05,2]